{"text_format":"3","workbook":"xlsx","n_sheets":1,"sheets":["Voorstel"],"not_rendered":{"images":1,"defined_names":20},"read":"whole","date_system":"1900"}

{"sheet":"Voorstel","index":0,"n_rows":39,"n_cols":7,"rows_kept":39,"merged":[[0,1,3,1],[0,3,0,6],[1,4,1,6],[2,4,2,6],[32,3,35,4],[36,3,36,6],[37,3,37,5],[38,3,38,5]]}
[{"$nulls":3},"BOUWVOORSTEL"]
[{"$nulls":3},"Bedrijfsnaam","| Voer in deze cel het adres van het bedrijf in"]
[{"$nulls":3},"Telefoon","| Voer in deze cel het faxnummer van het bedrijf en het e-mailadres voor het opnemen van contact in"]
[{"$nulls":3},"AANTAL","OMSCHRIJVING","EENHEIDSPRIJS","BEDRAG"]
[null,"KLANT",null,10,"Artikel 1",{"v":165,"d":"€ 165.00"},{"$f":"IFERROR(Regelitems[[#This Row],[AANTAL]]*Regelitems[[#This Row],[EENHEIDSPRIJS]], \"\")","v":{"v":1650,"d":"€ 1,650.00"}}]
[null,"Voer in deze cel de naam van de klant in",null,21,"Artikel 2",{"v":40,"d":"€ 40.00"},{"$f":"IFERROR(Regelitems[[#This Row],[AANTAL]]*Regelitems[[#This Row],[EENHEIDSPRIJS]], \"\")","v":{"v":840,"d":"€ 840.00"}}]
[null,"SCHATTINGNR.",null,5,"Artikel 3",{"v":10.5,"d":"€ 10.50"},{"$f":"IFERROR(Regelitems[[#This Row],[AANTAL]]*Regelitems[[#This Row],[EENHEIDSPRIJS]], \"\")","v":{"v":52.5,"d":"€ 52.50"}}]
[null,"C-1234",null,164,"Artikel 4",{"v":2.75,"d":"€ 2.75"},{"$f":"IFERROR(Regelitems[[#This Row],[AANTAL]]*Regelitems[[#This Row],[EENHEIDSPRIJS]], \"\")","v":{"v":451,"d":"€ 451.00"}}]
[null,"DATUM",null,6,"Artikel 5",{"v":12,"d":"€ 12.00"},{"$f":"IFERROR(Regelitems[[#This Row],[AANTAL]]*Regelitems[[#This Row],[EENHEIDSPRIJS]], \"\")","v":{"v":72,"d":"€ 72.00"}}]
[null,{"$f":"TODAY()","v":"2018-11-16"},null,18,"Artikel 6",{"v":5.5,"d":"€ 5.50"},{"$f":"IFERROR(Regelitems[[#This Row],[AANTAL]]*Regelitems[[#This Row],[EENHEIDSPRIJS]], \"\")","v":{"v":99,"d":"€ 99.00"}}]
[null,"ADRES",null,1,"Artikel 7",{"v":25,"d":"€ 25.00"},{"$f":"IFERROR(Regelitems[[#This Row],[AANTAL]]*Regelitems[[#This Row],[EENHEIDSPRIJS]], \"\")","v":{"v":25,"d":"€ 25.00"}}]
[null,"Voer in deze cel het adres van de klant in",{"$nulls":4},{"$f":"IFERROR(Regelitems[[#This Row],[AANTAL]]*Regelitems[[#This Row],[EENHEIDSPRIJS]], \"\")","v":{"v":0,"d":"€ 0.00"}}]
[null,"Postcode en plaats",{"$nulls":4},{"$f":"IFERROR(Regelitems[[#This Row],[AANTAL]]*Regelitems[[#This Row],[EENHEIDSPRIJS]], \"\")","v":{"v":0,"d":"€ 0.00"}}]
[null,"Voer in deze cel de postcode en plaats van de klant in",{"$nulls":4},{"$f":"IFERROR(Regelitems[[#This Row],[AANTAL]]*Regelitems[[#This Row],[EENHEIDSPRIJS]], \"\")","v":{"v":0,"d":"€ 0.00"}}]
[null,"TELEFOON",{"$nulls":4},{"$f":"IFERROR(Regelitems[[#This Row],[AANTAL]]*Regelitems[[#This Row],[EENHEIDSPRIJS]], \"\")","v":{"v":0,"d":"€ 0.00"}}]
[null,"Voer in deze cel het telefoonnummer van de klant in",{"$nulls":4},{"$f":"IFERROR(Regelitems[[#This Row],[AANTAL]]*Regelitems[[#This Row],[EENHEIDSPRIJS]], \"\")","v":{"v":0,"d":"€ 0.00"}}]
[null,"E-MAIL",{"$nulls":4},{"$f":"IFERROR(Regelitems[[#This Row],[AANTAL]]*Regelitems[[#This Row],[EENHEIDSPRIJS]], \"\")","v":{"v":0,"d":"€ 0.00"}}]
[null,"Voer in deze cel het e-mailadres van de klant in",{"$nulls":4},{"$f":"IFERROR(Regelitems[[#This Row],[AANTAL]]*Regelitems[[#This Row],[EENHEIDSPRIJS]], \"\")","v":{"v":0,"d":"€ 0.00"}}]
[null,"VERKOPER",{"$nulls":4},{"$f":"IFERROR(Regelitems[[#This Row],[AANTAL]]*Regelitems[[#This Row],[EENHEIDSPRIJS]], \"\")","v":{"v":0,"d":"€ 0.00"}}]
[null,"Voer in deze cel de naam van de verkoper in",{"$nulls":4},{"$f":"IFERROR(Regelitems[[#This Row],[AANTAL]]*Regelitems[[#This Row],[EENHEIDSPRIJS]], \"\")","v":{"v":0,"d":"€ 0.00"}}]
[null,"PROJECT",{"$nulls":4},{"$f":"IFERROR(Regelitems[[#This Row],[AANTAL]]*Regelitems[[#This Row],[EENHEIDSPRIJS]], \"\")","v":{"v":0,"d":"€ 0.00"}}]
[null,"Voer in deze cel de projectnaam in",{"$nulls":4},{"$f":"IFERROR(Regelitems[[#This Row],[AANTAL]]*Regelitems[[#This Row],[EENHEIDSPRIJS]], \"\")","v":{"v":0,"d":"€ 0.00"}}]
[null,"VOORBEREID DOOR:",{"$nulls":4},{"$f":"IFERROR(Regelitems[[#This Row],[AANTAL]]*Regelitems[[#This Row],[EENHEIDSPRIJS]], \"\")","v":{"v":0,"d":"€ 0.00"}}]
[null,"Voer in deze cel de naam van de voorbereider in",{"$nulls":4},{"$f":"IFERROR(Regelitems[[#This Row],[AANTAL]]*Regelitems[[#This Row],[EENHEIDSPRIJS]], \"\")","v":{"v":0,"d":"€ 0.00"}}]
[null,"TER ATTENTIE VAN",{"$nulls":4},{"$f":"IFERROR(Regelitems[[#This Row],[AANTAL]]*Regelitems[[#This Row],[EENHEIDSPRIJS]], \"\")","v":{"v":0,"d":"€ 0.00"}}]
[null,"Voer de naam van de persoon aan wie het voorstel wordt gericht in deze cel in",{"$nulls":4},{"$f":"IFERROR(Regelitems[[#This Row],[AANTAL]]*Regelitems[[#This Row],[EENHEIDSPRIJS]], \"\")","v":{"v":0,"d":"€ 0.00"}}]
[null,"BETALINGSVOORWAARDEN",{"$nulls":4},{"$f":"IFERROR(Regelitems[[#This Row],[AANTAL]]*Regelitems[[#This Row],[EENHEIDSPRIJS]], \"\")","v":{"v":0,"d":"€ 0.00"}}]
[null,"Netto 30",{"$nulls":4},{"$f":"IFERROR(Regelitems[[#This Row],[AANTAL]]*Regelitems[[#This Row],[EENHEIDSPRIJS]], \"\")","v":{"v":0,"d":"€ 0.00"}}]
[null,"VERVALDATUM",{"$nulls":4},{"$f":"IFERROR(Regelitems[[#This Row],[AANTAL]]*Regelitems[[#This Row],[EENHEIDSPRIJS]], \"\")","v":{"v":0,"d":"€ 0.00"}}]
[null,{"$f":"TODAY()+30","v":"2018-12-16"},{"$nulls":4},{"$f":"IFERROR(Regelitems[[#This Row],[AANTAL]]*Regelitems[[#This Row],[EENHEIDSPRIJS]], \"\")","v":{"v":0,"d":"€ 0.00"}}]
[{"$nulls":5},"SUBTOTAAL",{"$f":"SUBTOTAL(109,Regelitems[BEDRAG])","v":{"v":3189.5,"d":"€ 3,189.50"}}]
[{"$nulls":3},"DIT VOORSTEL IS ONDERHEVIG AAN DE VOLGENDE VOORWAARDEN:",null,"BELASTINGTARIEF ",{"v":0.0775,"d":"7.75%"}]
[{"$nulls":3},"Voer hier de voorwaarden in",null,"BTW ",{"$f":"IFERROR(Subtotaal*Belastingtarief, \"\")","v":{"v":247.18625,"d":"€ 247.19"}}]
[{"$nulls":5},"OVERIG "]
[{"$nulls":5},"TOTAAL ",{"$f":"IFERROR(Subtotaal+G33+Overige, \"\")","v":{"v":3436.68625,"d":"€ 3,436.69"}}]
[]
[{"$nulls":3},"Uw handtekening hieronder om de offerte te accepteren:"]
[]
[{"$nulls":3},"Geautoriseerde vertegenwoordiger",null,null,"Datum"]